{"text_format":"1","workbook":"xlsx","n_sheets":2,"sheets":["Tilauslomake","Order Form"],"not_rendered":{"charts":0,"images":1,"macros":1,"external_links":0,"defined_names":2,"comments":0,"pivot_tables":0},"unopened":[],"bounds":{"document_bytes":16777216,"sheet_cells":100000,"rows_first":2000,"rows_last":500,"rows_between":2000,"halvings":0,"cell_chars":16384,"cell_head_chars":4096},"cells_cut":0,"cells_raw":0,"read":"whole","date_system":"1900"}

{"sheet":"Tilauslomake","index":0,"n_rows":59,"n_cols":15,"rows_kept":59,"cut":false,"hidden":false,"merged":[[1,7,1,14],[1,5,1,6],[5,8,5,14],[4,8,4,14],[4,5,4,7],[2,5,2,6],[2,7,2,8],[2,10,2,14],[3,8,3,14],[3,5,3,7],[57,13,57,14],[58,13,58,14],[52,0,52,14],[57,8,57,12],[58,8,58,12],[56,8,56,12],[55,0,59,6],[54,0,54,6],[53,0,53,14],[56,13,56,14],[34,1,34,9],[35,1,35,9],[32,1,32,9],[50,1,50,9],[51,1,51,9],[46,1,46,9],[36,1,36,9],[49,1,49,9],[37,1,37,9],[47,1,47,9],[40,1,40,9],[38,1,38,9],[39,1,39,9],[41,1,41,9],[48,1,48,9],[33,1,33,9],[31,1,31,9],[28,1,28,9],[29,1,29,9],[19,1,19,9],[20,1,20,9],[22,1,22,9],[24,1,24,9],[25,1,25,9],[26,1,26,9],[27,1,27,9],[21,1,21,9],[23,1,23,9],[9,1,9,9],[10,1,10,9],[5,5,5,7],[7,0,7,14],[6,0,6,4],[6,5,6,7],[6,8,6,14],[5,1,5,4],[8,1,8,9],[11,1,11,9],[12,1,12,9],[13,1,13,9],[16,1,16,9],[18,1,18,9],[14,1,14,9],[17,1,17,9],[15,1,15,9]]}
[null,null,null,null,null,"KOKOUS- JA EDUSTUSTARJOILULOMAKE",null,null,null,null," Antell Alberga"]
[null,null,null,null,null,"Isäntä:"]
[null,null,null,null,null,"Puhelin:",null,null,null,"Sähköpostiosoite:"]
[null,null,null,null,null,"Viite laskulle:"]
[null,null,null,null,null,"Tilaisuuden nimi:"]
[null,null,null,null,null,"Kokoustila:"]
[null,null,null,null,null,"Henkilömäärä:"]
[]
[null,"SAUNAMENUT",null,null,null,null,null,null,null,null,"KPL","Á-HINTA (alv 0)","Á-HINTA (alv 14)","YHT € (alv 0)","YHT € (alv 14)"]
[null,"StreetFood"]
[null,"Artesaani HotDog (rehtiä chorizomakkaraa, mausteista kimchiä, sriracha-majoneesia, rucolan ja Romainesalaatin kera)",null,null,null,null,null,null,null,null,null,{"$f":"0.86*M11","v":12.9},15,{"$f":"K11*L11","v":0},{"$f":"K11*M11","v":0}]
[null,"Pulled Pork Taco (pitkään haudutettua suomalaista nyhtöpossua, Pico de galle-salsakastiketta murskatuista tomaateista, Lime-korianterifraichea sekä raikasta mummonkurkkua ja fenkolia)",null,null,null,null,null,null,null,null,null,16.082000000000001,18.7,0,0]
[null,"Salmon ceviche taco (kirjolohta, retiisiä, punasipulia, tomaattia , fenkolia ja herkullista wasabidressingiä)",null,null,null,null,null,null,null,null,null,16.512,19.2,0,0]
[null,"Shrimp ceviche taco (katkarapua, mangoa, tomaattia, punasipulia ja pehmeäntulista mango-chilimajoneesia)",null,null,null,null,null,null,null,null,null,16.253999999999998,18.899999999999999,0,0]
[null,"Perinteistä saunaruokaa"]
[null,"Kiusaus (kananpoikakiusaus tai rosmariini- riistakiusaus tai punajuuri-vuohenjuustokiusaus), vihreä tuoresalaatti ja patonki yrttivoilla",null,null,null,null,null,null,null,null,null,{"$f":"0.86*M16","v":13.33},15.5,{"$f":"K16*L16","v":0},{"$f":"K16*M16","v":0}]
[null,"Makkaramix(Tapolan mustaamakkaraa, bratwurstia ja perinteistä Wilhelm-makkaraa), coleslaw, mummonkurkkuja, sinappista perunasalaattia.",null,null,null,null,null,null,null,null,null,13.33,15.5,0,0]
[null,"Salaatteja"]
[null,"Kana-caesarsalaatti (Romaine-salaattia, parmesania, krutonkejaja herkullista caessar-kastiketta),patonkia, yrttilevitettä",null,null,null,null,null,null,null,null,null,17.543999999999997,20.399999999999999,0,0]
[null,"Maalaissalaatti (perunaa, pekonia, sipulia, papuja ja Aurajuustoa salaattipedillä sekä herkullista pistou-kastiketta), patonkia, yrttilevitettä",null,null,null,null,null,null,null,null,null,17.543999999999997,20.399999999999999,0,0]
[null,"Poke bowl hiillostettusta lohesta (puna-valkokaalisalaattia, inkivääri porkkanoita, riisiä, seesamkurkkuja, soijapapuja ja pähkinää, chili-majoneesikastiketta), patonkia, yrttilevitettä",null,null,null,null,null,null,null,null,null,17.543999999999997,20.399999999999999,{"$f":"K21*L21","v":0},{"$f":"K21*M21","v":0}]
[null,null,null,null,null,null,null,null,null,null,null,0,0,0,0]
[null,null,null,null,null,null,null,null,null,null,null,0,0,0,0]
[null,null,null,null,null,null,null,null,null,null,null,0,0,0,0]
[null,null,null,null,null,null,null,null,null,null,null,0,0,0,0]
[null,null,null,null,null,null,null,null,null,null,null,0,0,0,0]
[null,null,null,null,null,null,null,null,null,null,null,0,0,0,0]
[null,null,null,null,null,null,null,null,null,null,null,0,0,0,0]
[null,null,null,null,null,null,null,null,null,null,null,0,0,0,0]
[null,null,null,null,null,null,null,null,null,null,null,0,0,0,0]
[null,null,null,null,null,null,null,null,null,null,null,0,0,0,0]
[null,null,null,null,null,null,null,null,null,null,null,null,0,0,0]
[null,"JUOMAT",null,null,null,null,null,null,null,null,"KPL",null,"Á-HINTA (alv 14)","€","€"]
[null,null,null,null,null,null,null,null,null,null,null,0,0,{"$f":"K34*L34","v":0},{"$f":"K34*M34","v":0}]
[null,null,null,null,null,null,null,null,null,null,null,0,0,0,0]
[null,null,null,null,null,null,null,null,null,null,null,0,0,0,0]
[null,null,null,null,null,null,null,null,null,null,null,0,0,0,0]
[null,null,null,null,null,null,null,null,null,null,null,0,0,0,0]
[null,null,null,null,null,null,null,null,null,null,null,0,0,0,0]
[null,null,null,null,null,null,null,null,null,null,null,0,0,0,0]
[null,null,null,null,null,null,null,null,null,null,null,{"$f":"0.86*M41","v":0},0,0,0]
[null,null,null,null,null,null,null,null,null,null,null,0,0,0,0]
[null,null,null,null,null,null,null,null,null,null,null,0,0,0,0]
[null,null,null,null,null,null,null,null,null,null,null,0,0,0,0]
[null,null,null,null,null,null,null,null,null,null,null,0,0,0,0]
[null,null,null,null,null,null,null,null,null,null,null,0,0,0,0]
["KLO","MUUT TUOTTEET JA PAKETIT",null,null,null,null,null,null,null,null,"KPL","Á-HINTA (alv 0)","Á-HINTA (alv 14)","€","€"]
[null,null,null,null,null,null,null,null,null,null,null,0,0,{"$f":"K48*L48","v":0},{"$f":"K48*M48","v":0}]
[null,null,null,null,null,null,null,null,null,null,null,0,0,0,0]
[null,null,null,null,null,null,null,null,null,null,null,0,0,0,0]
[null,null,null,null,null,null,null,null,null,null,null,0,0,0,0]
[null,null,null,null,null,null,null,null,null,null,null,0,0,0,0]
[]
[]
[]
[null,null,null,null,null,null,null,null,null,null,null,null,"YHTEENSÄ:"]
[null,null,null,null,null,null,null,null,"NETTO (alv 0)",null,null,null,null,{"$f":"SUM(N10:N52)","v":0}]
[null,null,null,null,null,null,null,null,"Arvonlisäveron määrä (14%)",null,null,null,null,{"$f":"N59-N57","v":0}]
[null,null,null,null,null,null,null,null,"BRUTTO (sis alv 14%) €",null,null,null,null,{"$f":"SUM(O10:O52)","v":0}]

{"sheet":"Order Form","index":1,"n_rows":59,"n_cols":15,"rows_kept":59,"cut":false,"hidden":false,"merged":[[3,5,3,7],[3,8,3,14],[1,5,1,6],[1,7,1,14],[2,5,2,6],[2,7,2,8],[2,10,2,14],[12,1,12,9],[4,5,4,7],[4,8,4,14],[5,1,5,4],[5,5,5,7],[5,8,5,14],[6,0,6,4],[6,5,6,7],[6,8,6,14],[7,0,7,14],[8,1,8,9],[9,1,9,9],[10,1,10,9],[11,1,11,9],[24,1,24,9],[13,1,13,9],[14,1,14,9],[15,1,15,9],[16,1,16,9],[17,1,17,9],[18,1,18,9],[19,1,19,9],[20,1,20,9],[21,1,21,9],[22,1,22,9],[23,1,23,9],[37,1,37,9],[25,1,25,9],[26,1,26,9],[27,1,27,9],[28,1,28,9],[29,1,29,9],[31,1,31,9],[32,1,32,9],[33,1,33,9],[34,1,34,9],[35,1,35,9],[36,1,36,9],[53,0,53,14],[38,1,38,9],[39,1,39,9],[40,1,40,9],[41,1,41,9],[46,1,46,9],[47,1,47,9],[48,1,48,9],[49,1,49,9],[50,1,50,9],[51,1,51,9],[52,0,52,14],[54,0,54,6],[55,0,59,6],[56,8,56,12],[56,13,56,14],[57,8,57,12],[57,13,57,14],[58,8,58,12],[58,13,58,14]]}
[null,null,null,null,null,"MEETING AND EVENT CATERING FORM",null,null,null,null," Antell Alberga"]
[null,null,null,null,null,"Host:"]
[null,null,null,null,null,"Phone no:",null,null,null,"Email:"]
[null,null,null,null,null,"Invoice reference:"]
[null,null,null,null,null,"Event name:"]
[null,null,null,null,null,"Meeting room:"]
[null,null,null,null,null,"Number of guests:"]
[]
["TIME","SAUNA CATERING MENUS",null,null,null,null,null,null,null,null,"pcs","Á PRICE (VAT 0)","Á-PRICE (VAT 14)","TOTAL € (VAT 0)","TOTAL € (VAT 14)"]
[null,"StreetFood"]
[null,"Artisan Hot Dog - Chorizo served with kimchi, sriracha mayo, rucola and Romaine lettuce",null,null,null,null,null,null,null,null,null,{"$f":"0.86*M11","v":12.9},15,{"$f":"K11*L11","v":0},{"$f":"K11*M11","v":0}]
[null,"Pulled Pork Taco - Finnish pulled pork, Pico de gallo, coriander-lime fraiche, freshly pickled cucumbers and fennel",null,null,null,null,null,null,null,null,null,16.082000000000001,18.7,0,0]
[null,"Salmon Ceviche Taco - Salmon, radish, red onion, tomato, fennel, wasabi dressing",null,null,null,null,null,null,null,null,null,16.512,19.2,0,0]
[null,"Shrimp Ceviche Taco - Shrimp, mango, tomato, red onion, mango-chili mayo",null,null,null,null,null,null,null,null,null,16.253999999999998,18.899999999999999,0,0]
[null,"Traditional sauna foods"]
[null,"Casserole (chicken OR rosemary&game OR beetroot-goat cheese), fresh salad and baguette with herb butter",null,null,null,null,null,null,null,null,null,{"$f":"0.86*M16","v":13.33},15.5,{"$f":"K16*L16","v":0},{"$f":"K16*M16","v":0}]
[null,"Sausage Mix - Tapola black sausage, bratwurst & traditional grill sausage Wilhelm, served with coleslaw, pickled cucumbers, potato salad",null,null,null,null,null,null,null,null,null,13.33,15.5,0,0]
[null,"Salads"]
[null,"Chicken Caesar - Salad Romaine, parmesan, croutons, Caesar dressing.  The salad is served with baguette and herb spread.",null,null,null,null,null,null,null,null,null,17.543999999999997,20.399999999999999,0,0]
[null,"Country Salad - potato, bacon, onion, beans, Aurajuusto blue cheese, lettuce, Pistou dressing. The salad is served with baguette and herb spread.",null,null,null,null,null,null,null,null,null,17.543999999999997,20.399999999999999,0,0]
[null,"Salmon Poke Bowl - red cabbage coleslaw, ginger carrots, rice, sesame cucumbers, soy beans and nuts, chili-mayonnaise dressing. The salad is served with baguette and herb spread.",null,null,null,null,null,null,null,null,null,17.543999999999997,20.399999999999999,0,0]
[null,null,null,null,null,null,null,null,null,null,null,0,0,0,0]
[null,null,null,null,null,null,null,null,null,null,null,0,0,0,0]
[null,null,null,null,null,null,null,null,null,null,null,0,0,0,0]
[null,null,null,null,null,null,null,null,null,null,null,0,0,0,0]
[null,null,null,null,null,null,null,null,null,null,null,0,0,0,0]
[null,null,null,null,null,null,null,null,null,null,null,0,0,0,0]
[null,null,null,null,null,null,null,null,null,null,null,0,0,0,0]
[null,null,null,null,null,null,null,null,null,null,null,0,0,0,0]
[null,null,null,null,null,null,null,null,null,null,null,0,0,0,0]
[null,null,null,null,null,null,null,null,null,null,null,0,0,0,0]
[null,null,null,null,null,null,null,null,null,null,null,null,0,0,0]
["TIME","DRINKS",null,null,null,null,null,null,null,null,"pcs","Á PRICE (VAT 0)","Á-PRICE (VAT 14)","TOTAL € (VAT 0)","TOTAL € (VAT 14)"]
[null,null,null,null,null,null,null,null,null,null,null,0,0,{"$f":"K34*L34","v":0},{"$f":"K34*M34","v":0}]
[null,null,null,null,null,null,null,null,null,null,null,0,0,0,0]
[null,null,null,null,null,null,null,null,null,null,null,0,0,0,0]
[null,null,null,null,null,null,null,null,null,null,null,0,0,0,0]
[null,null,null,null,null,null,null,null,null,null,null,0,0,0,0]
[null,null,null,null,null,null,null,null,null,null,null,0,0,0,0]
[null,null,null,null,null,null,null,null,null,null,null,0,0,0,0]
[null,null,null,null,null,null,null,null,null,null,null,{"$f":"0.86*M41","v":0},0,0,0]
[null,null,null,null,null,null,null,null,null,null,null,0,0,0,0]
[null,null,null,null,null,null,null,null,null,null,null,0,0,0,0]
[null,null,null,null,null,null,null,null,null,null,null,0,0,0,0]
[null,null,null,null,null,null,null,null,null,null,null,0,0,0,0]
[null,null,null,null,null,null,null,null,null,null,null,0,0,0,0]
["TIME","OTHER PRODUCTS & PACKAGES",null,null,null,null,null,null,null,null,"pcs","Á PRICE (VAT 0)","Á-PRICE (VAT 14)","TOTAL € (VAT 0)","TOTAL € (VAT 14)"]
[null,null,null,null,null,null,null,null,null,null,null,0,0,{"$f":"K48*L48","v":0},{"$f":"K48*M48","v":0}]
[null,null,null,null,null,null,null,null,null,null,null,0,0,0,0]
[null,null,null,null,null,null,null,null,null,null,null,0,0,0,0]
[null,null,null,null,null,null,null,null,null,null,null,0,0,0,0]
[null,null,null,null,null,null,null,null,null,null,null,0,0,0,0]
[]
[]
[]
[null,null,null,null,null,null,null,null,null,null,null,null,"TOTAL:"]
[null,null,null,null,null,null,null,null,"NETTO (VAT 0)",null,null,null,null,{"$f":"SUM(N10:N52)","v":0}]
[null,null,null,null,null,null,null,null,"TOTAL INCL  VAT (14%)",null,null,null,null,{"$f":"N59-N57","v":0}]
[null,null,null,null,null,null,null,null,"BRUTTO (incl vat 14%) €",null,null,null,null,{"$f":"SUM(O10:O52)","v":0}]